[Event "Late-Titled-Tuesday-Blitz-January-30-2024"]
[Site "Chess.com"]
[Date "2024.01.30"]
[Round "2"]
[White "josmito10"]
[Black "StellarChess"]
[Result "1-0"]
[WhiteElo "2809"]
[BlackElo "2556"]
[TimeControl "180+1"]
[EndTime "14:19:18 PST"]
[Termination "josmito10 won by resignation"]

1. e4 {[%clk 0:02:59.1]} 1... g6 {[%clk 0:02:59.8]} 2. d4 {[%clk 0:02:59]} 2...
Bg7 {[%clk 0:03:00.3]} 3. Nc3 {[%clk 0:02:59.1]} 3... c6 {[%clk 0:03:01.1]} 4.
Nf3 {[%clk 0:02:55.2]} 4... d5 {[%clk 0:03:01.3]} 5. Bf4 {[%clk 0:02:48.7]} 5...
dxe4 {[%clk 0:03:00.3]} 6. Nxe4 {[%clk 0:02:48.9]} 6... Nf6 {[%clk 0:03:01.2]}
7. Nxf6+ {[%clk 0:02:49.1]} 7... exf6 {[%clk 0:03:01.7]} 8. Be2 {[%clk 0:02:49]}
8... O-O {[%clk 0:03:00.7]} 9. O-O {[%clk 0:02:49.5]} 9... Re8 {[%clk
0:03:01.4]} 10. Re1 {[%clk 0:02:49.3]} 10... Nd7 {[%clk 0:03:02]} 11. h3 {[%clk
0:02:49.1]} 11... Nf8 {[%clk 0:03:02.4]} 12. Bc4 {[%clk 0:02:48.3]} 12... Be6
{[%clk 0:03:02.7]} 13. Bxe6 {[%clk 0:02:48]} 13... Nxe6 {[%clk 0:03:03.6]} 14.
Bg3 {[%clk 0:02:47.4]} 14... Qd7 {[%clk 0:03:02.5]} 15. c3 {[%clk 0:02:46.9]}
15... Rad8 {[%clk 0:03:02.3]} 16. Qb3 {[%clk 0:02:47.3]} 16... b6 {[%clk
0:03:00.9]} 17. Rad1 {[%clk 0:02:47.2]} 17... Qd5 {[%clk 0:03:01.3]} 18. c4
{[%clk 0:02:43.2]} 18... Qd7 {[%clk 0:02:59.8]} 19. d5 {[%clk 0:02:42.2]} 19...
Nc5 {[%clk 0:02:55]} 20. Rxe8+ {[%clk 0:02:41.7]} 20... Rxe8 {[%clk 0:02:53.1]}
21. Qc2 {[%clk 0:02:39.9]} 21... f5 {[%clk 0:02:50.3]} 22. b4 {[%clk 0:02:27.6]}
22... Ne4 {[%clk 0:02:48.8]} 23. d6 {[%clk 0:02:26.9]} 23... c5 {[%clk
0:02:46.4]} 24. bxc5 {[%clk 0:02:25.7]} 24... Nxg3 {[%clk 0:02:44.1]} 25. c6
{[%clk 0:02:16.4]} 25... Qxc6 {[%clk 0:02:10.3]} 26. fxg3 {[%clk 0:02:16.3]}
26... Rd8 {[%clk 0:02:03.5]} 27. Qd3 {[%clk 0:02:15.8]} 27... Bf6 {[%clk
0:02:02.2]} 28. d7 {[%clk 0:02:14.9]} 28... Kg7 {[%clk 0:02:02.1]} 29. g4 {[%clk
0:02:12]} 29... fxg4 {[%clk 0:01:59.9]} 30. hxg4 {[%clk 0:02:12.9]} 30... h6
{[%clk 0:02:00.5]} 31. Kh1 {[%clk 0:02:06.9]} 31... a6 {[%clk 0:02:00]} 32. Qd5
{[%clk 0:01:53.6]} 32... Qxd5 {[%clk 0:01:57.1]} 33. Rxd5 {[%clk 0:01:54.5]}
33... Kf8 {[%clk 0:01:53.1]} 34. Rd6 {[%clk 0:01:54.3]} 34... Ke7 {[%clk
0:01:53.3]} 35. Rxb6 {[%clk 0:01:53.8]} 35... Rxd7 {[%clk 0:01:52.6]} 36. Rxa6
{[%clk 0:01:53.4]} 36... Rd1+ {[%clk 0:01:50.2]} 37. Kh2 {[%clk 0:01:53.4]}
37... Rc1 {[%clk 0:01:51.1]} 38. Ra7+ {[%clk 0:01:46.6]} 38... Kf8 {[%clk
0:01:49.1]} 39. Rc7 {[%clk 0:01:44.9]} 39... Rc3 {[%clk 0:01:45.6]} 40. c5
{[%clk 0:01:40.6]} 40... Kg7 {[%clk 0:01:38.2]} 41. Rc8 {[%clk 0:01:25.7]} 41...
Ra3 {[%clk 0:01:30.3]} 42. c6 {[%clk 0:01:22.7]} 42... Rxa2 {[%clk 0:01:29.7]}
43. Kg3 {[%clk 0:01:07.3]} 43... g5 {[%clk 0:01:17.5]} 44. Ne1 {[%clk
0:00:56.7]} 44... Ra3+ {[%clk 0:01:09.4]} 45. Kf2 {[%clk 0:00:55.7]} 45... Rc3
{[%clk 0:01:06.5]} 46. Ke2 {[%clk 0:00:50.2]} 46... Be5 {[%clk 0:01:02.6]} 47.
Nd3 {[%clk 0:00:49.9]} 47... Rc2+ {[%clk 0:01:02.2]} 48. Kf3 {[%clk 0:00:48.7]}
48... f6 {[%clk 0:00:56.4]} 49. Ke4 {[%clk 0:00:31]} 49... Rxg2 {[%clk
0:00:41.3]} 50. Nxe5 {[%clk 0:00:27.9]} 50... fxe5 {[%clk 0:00:42.2]} 51. Kf5
{[%clk 0:00:26.2]} 51... Rf2+ {[%clk 0:00:31.7]} 52. Kxe5 {[%clk 0:00:25.4]}
52... Rc2 {[%clk 0:00:28.6]} 53. Kf5 {[%clk 0:00:20.1]} 53... Rc5+ {[%clk
0:00:22.9]} 54. Ke6 {[%clk 0:00:20.2]} 54... Rc4 {[%clk 0:00:23.4]} 55. Kd5
{[%clk 0:00:20]} 55... Rc1 {[%clk 0:00:22.5]} 56. Re8 {[%clk 0:00:16.9]} 56...
Rd1+ {[%clk 0:00:20.6]} 57. Ke6 {[%clk 0:00:15.9]} 57... Rc1 {[%clk 0:00:19.7]}
58. Kd7 {[%clk 0:00:15.8]} 58... Kf7 {[%clk 0:00:18.9]} 59. Re4 {[%clk
0:00:14.9]} 59... Kg6 {[%clk 0:00:15.7]} 60. c7 {[%clk 0:00:14.7]} 60... h5
{[%clk 0:00:16.3]} 61. Re6+ {[%clk 0:00:13]} 61... Kf7 {[%clk 0:00:15.1]} 62.
Rc6 {[%clk 0:00:11.2]} 62... Rd1+ {[%clk 0:00:08.8]} 63. Rd6 {[%clk 0:00:11.1]}
63... Rc1 {[%clk 0:00:09.2]} 64. gxh5 {[%clk 0:00:11.5]} 64... g4 {[%clk
0:00:03.6]} 65. Rg6 {[%clk 0:00:11.4]} 65... Rd1+ {[%clk 0:00:03.5]} 66. Kc8
{[%clk 0:00:11.5]} 66... Rd4 {[%clk 0:00:02.9]} 67. Kb7 {[%clk 0:00:11.3]} 67...
Rb4+ {[%clk 0:00:03.3]} 68. Rb6 {[%clk 0:00:10.2]} 68... Rc4 {[%clk 0:00:02.4]}
69. Rc6 {[%clk 0:00:10.5]} 69... Rb4+ {[%clk 0:00:02.6]} 70. Ka6 {[%clk
0:00:09.9]} 70... Ra4+ {[%clk 0:00:02.7]} 71. Kb5 {[%clk 0:00:10.2]} 71... Ra8
{[%clk 0:00:03.6]} 72. c8=Q {[%clk 0:00:10.3]} 72... Rxc8 {[%clk 0:00:04.2]} 73.
Rxc8 {[%clk 0:00:10.9]} 73... Kf6 {[%clk 0:00:05.1]} 74. Rg8 {[%clk 0:00:10.6]}
74... Kf5 {[%clk 0:00:04.9]} 75. h6 {[%clk 0:00:10.9]} 1-0

[Event "Late-Titled-Tuesday-Blitz-January-30-2024"]
[Site "Chess.com"]
[Date "2024.01.30"]
[Round "2"]
[White "Kleyton_Lima"]
[Black "Seochesspie"]
[Result "0-1"]
[WhiteElo "2580"]
[BlackElo "2860"]
[TimeControl "180+1"]
[EndTime "14:19:24 PST"]
[Termination "Seochesspie won on time"]

1. e4 {[%clk 0:03:00.9]} 1... c5 {[%clk 0:02:59.4]} 2. Nf3 {[%clk 0:03:00.7]}
2... d6 {[%clk 0:02:59.8]} 3. d4 {[%clk 0:03:01.2]} 3... cxd4 {[%clk 0:03:00]}
4. Nxd4 {[%clk 0:03:02.1]} 4... Nf6 {[%clk 0:03:00.6]} 5. Nc3 {[%clk 0:03:02]}
5... a6 {[%clk 0:03:01.3]} 6. Bg5 {[%clk 0:03:02.5]} 6... Nbd7 {[%clk
0:03:00.9]} 7. Bc4 {[%clk 0:03:00.4]} 7... Qb6 {[%clk 0:03:00]} 8. Bb3 {[%clk
0:02:57.1]} 8... e6 {[%clk 0:02:59.8]} 9. Bxf6 {[%clk 0:02:57.7]} 9... Nxf6
{[%clk 0:02:58.9]} 10. Qd2 {[%clk 0:02:58.3]} 10... Bd7 {[%clk 0:02:54.3]} 11.
O-O-O {[%clk 0:02:40.3]} 11... O-O-O {[%clk 0:02:48.9]} 12. f4 {[%clk 0:02:32]}
12... Qc7 {[%clk 0:02:48.5]} 13. Kb1 {[%clk 0:02:29.9]} 13... Be7 {[%clk
0:02:40.7]} 14. f5 {[%clk 0:02:29.7]} 14... e5 {[%clk 0:02:38.3]} 15. Nf3 {[%clk
0:02:28.8]} 15... Bc6 {[%clk 0:02:34.4]} 16. Ng5 {[%clk 0:02:10.8]} 16... d5
{[%clk 0:02:20.8]} 17. Nxf7 {[%clk 0:02:08.9]} 17... dxe4 {[%clk 0:02:20.9]} 18.
Nxd8 {[%clk 0:02:07.9]} 18... Rxd8 {[%clk 0:02:21.5]} 19. Qe2 {[%clk 0:02:02.3]}
19... Rd4 {[%clk 0:02:20.1]} 20. Rhe1 {[%clk 0:01:52.4]} 20... Bb4 {[%clk
0:02:14.5]} 21. a3 {[%clk 0:01:49.4]} 21... Ba5 {[%clk 0:02:13.9]} 22. g4 {[%clk
0:01:46.7]} 22... h6 {[%clk 0:02:13.2]} 23. h4 {[%clk 0:01:46.2]} 23... Qe7
{[%clk 0:01:59.9]} 24. g5 {[%clk 0:01:43.5]} 24... hxg5 {[%clk 0:02:00]} 25.
hxg5 {[%clk 0:01:44.4]} 25... Nd7 {[%clk 0:01:59.8]} 26. Qh5 {[%clk 0:01:36.6]}
26... Kc7 {[%clk 0:01:35.1]} 27. Be6 {[%clk 0:01:07.2]} 27... Bxc3 {[%clk
0:01:23]} 28. bxc3 {[%clk 0:01:06]} 28... Rxd1+ {[%clk 0:01:23]} 29. Rxd1 {[%clk
0:01:06.1]} 29... e3 {[%clk 0:00:48.8]} 30. Bxd7 {[%clk 0:01:00.8]} 30... Bxd7
{[%clk 0:00:48.8]} 31. Rd3 {[%clk 0:00:47.5]} 31... Bxf5 {[%clk 0:00:32.2]} 32.
Rxe3 {[%clk 0:00:42.7]} 32... Qxa3 {[%clk 0:00:32.4]} 33. Qe2 {[%clk 0:00:39]}
33... Qb3+ {[%clk 0:00:30.4]} 34. Kc1 {[%clk 0:00:38.1]} 34... Qa3+ {[%clk
0:00:30]} 35. Kd2 {[%clk 0:00:36.6]} 35... Qd6+ {[%clk 0:00:25.7]} 36. Ke1
{[%clk 0:00:35.7]} 36... e4 {[%clk 0:00:26.2]} 37. Qc4+ {[%clk 0:00:31.2]} 37...
Kb8 {[%clk 0:00:25.5]} 38. Qd4 {[%clk 0:00:28.7]} 38... Qf4 {[%clk 0:00:24]} 39.
Qd8+ {[%clk 0:00:26.7]} 39... Ka7 {[%clk 0:00:24.1]} 40. Qd4+ {[%clk 0:00:26.3]}
40... Kb8 {[%clk 0:00:24.4]} 41. Qd8+ {[%clk 0:00:18.6]} 41... Bc8 {[%clk
0:00:21.9]} 42. Qd4 {[%clk 0:00:17.6]} 42... Qxg5 {[%clk 0:00:20.6]} 43. Qxe4
{[%clk 0:00:15.8]} 43... Qg1+ {[%clk 0:00:16.5]} 44. Kd2 {[%clk 0:00:16]} 44...
Qf2+ {[%clk 0:00:15.9]} 45. Kc1 {[%clk 0:00:16.2]} 45... Qf1+ {[%clk 0:00:15.9]}
46. Kb2 {[%clk 0:00:16.4]} 46... Qb5+ {[%clk 0:00:16.4]} 47. Qb4 {[%clk
0:00:15.7]} 47... Qc6 {[%clk 0:00:16.2]} 48. Rd3 {[%clk 0:00:15.1]} 48... g5
{[%clk 0:00:15.3]} 49. Qd6+ {[%clk 0:00:15.1]} 49... Qxd6 {[%clk 0:00:15.6]} 50.
Rxd6 {[%clk 0:00:16]} 50... g4 {[%clk 0:00:16.2]} 51. Rg6 {[%clk 0:00:16.6]}
51... Kc7 {[%clk 0:00:16.2]} 52. c4 {[%clk 0:00:17]} 52... Bf5 {[%clk
0:00:14.1]} 53. Rf6 {[%clk 0:00:15.2]} 53... Bd7 {[%clk 0:00:13.9]} 54. Rg6
{[%clk 0:00:15.3]} 54... Bf5 {[%clk 0:00:12.4]} 55. Rg5 {[%clk 0:00:15.5]} 55...
Bd7 {[%clk 0:00:12.4]} 56. Kc3 {[%clk 0:00:16.2]} 56... Kd6 {[%clk 0:00:12.5]}
57. Kd4 {[%clk 0:00:16.6]} 57... b6 {[%clk 0:00:11.4]} 58. Rg6+ {[%clk
0:00:16.9]} 58... Kc7 {[%clk 0:00:11.2]} 59. Kd5 {[%clk 0:00:17.3]} 59... a5
{[%clk 0:00:11.1]} 60. c5 {[%clk 0:00:16.2]} 60... bxc5 {[%clk 0:00:10.8]} 61.
Kxc5 {[%clk 0:00:16.7]} 61... a4 {[%clk 0:00:10.8]} 62. Kb4 {[%clk 0:00:16.4]}
62... Kd8 {[%clk 0:00:11.3]} 63. c4 {[%clk 0:00:16.5]} 63... Ke7 {[%clk
0:00:11.8]} 64. Kc5 {[%clk 0:00:16.3]} 64... Kf7 {[%clk 0:00:12.1]} 65. Rg5
{[%clk 0:00:16.5]} 65... a3 {[%clk 0:00:12.1]} 66. Kd6 {[%clk 0:00:15.8]} 66...
a2 {[%clk 0:00:07.9]} 67. Ra5 {[%clk 0:00:15.9]} 67... Be6 {[%clk 0:00:08.3]}
68. Ra7+ {[%clk 0:00:14.6]} 68... Kf6 {[%clk 0:00:08.2]} 69. Rxa2 {[%clk
0:00:13.6]} 69... Bxc4 {[%clk 0:00:08.4]} 70. Rf2+ {[%clk 0:00:14.2]} 70... Kg5
{[%clk 0:00:08.3]} 71. Ke5 {[%clk 0:00:15]} 71... g3 {[%clk 0:00:08.6]} 72. Rg2
{[%clk 0:00:14.1]} 72... Kg4 {[%clk 0:00:08.8]} 73. Ke4 {[%clk 0:00:14.2]} 73...
Ba6 {[%clk 0:00:09]} 74. Ke3 {[%clk 0:00:14.2]} 74... Bb7 {[%clk 0:00:09.4]} 75.
Rg1 {[%clk 0:00:14.5]} 75... Kh3 {[%clk 0:00:09.8]} 76. Ke2 {[%clk 0:00:14.7]}
76... Kh2 {[%clk 0:00:09.9]} 77. Kf1 {[%clk 0:00:10.8]} 77... Ba6+ {[%clk
0:00:09.5]} 78. Ke1 {[%clk 0:00:11.4]} 78... Kxg1 {[%clk 0:00:09.1]} 0-1

[Event "Late-Titled-Tuesday-Blitz-January-30-2024"]
[Site "Chess.com"]
[Date "2024.01.30"]
[Round "2"]
[White "bazar-wokzal"]
[Black "Kacparov"]
[Result "0-1"]
[WhiteElo "2604"]
[BlackElo "2935"]
[TimeControl "180+1"]
[EndTime "14:19:27 PST"]
[Termination "Kacparov won by resignation"]

1. e4 {[%clk 0:03:00.9]} 1... c5 {[%clk 0:03:00]} 2. c3 {[%clk 0:03:00.6]} 2...
d6 {[%clk 0:03:00.2]} 3. d4 {[%clk 0:03:00.3]} 3... Nf6 {[%clk 0:03:00.8]} 4.
Bd3 {[%clk 0:03:00]} 4... Nc6 {[%clk 0:03:01.2]} 5. d5 {[%clk 0:02:59.5]} 5...
Nb8 {[%clk 0:03:00.8]} 6. f4 {[%clk 0:02:58.2]} 6... e6 {[%clk 0:02:57.3]} 7. c4
{[%clk 0:02:57.6]} 7... exd5 {[%clk 0:02:51.3]} 8. cxd5 {[%clk 0:02:57.5]} 8...
c4 {[%clk 0:02:39.3]} 9. Bc2 {[%clk 0:02:26]} 9... Be7 {[%clk 0:02:31.8]} 10.
Nf3 {[%clk 0:02:25.6]} 10... O-O {[%clk 0:02:31.2]} 11. O-O {[%clk 0:02:25.7]}
11... Qb6+ {[%clk 0:02:25.4]} 12. Kh1 {[%clk 0:02:25.2]} 12... Bg4 {[%clk
0:02:11.8]} 13. Nc3 {[%clk 0:02:19.1]} 13... Nbd7 {[%clk 0:02:07.6]} 14. h3
{[%clk 0:01:54.5]} 14... Bxf3 {[%clk 0:02:06.6]} 15. Qxf3 {[%clk 0:01:55.4]}
15... Qc7 {[%clk 0:01:59.5]} 16. Be3 {[%clk 0:01:47.3]} 16... a6 {[%clk
0:01:59.1]} 17. a4 {[%clk 0:01:46.5]} 17... b5 {[%clk 0:01:47.9]} 18. axb5
{[%clk 0:01:45.1]} 18... axb5 {[%clk 0:01:48.8]} 19. Nxb5 {[%clk 0:01:28.7]}
19... Qb7 {[%clk 0:01:46.7]} 20. Nd4 {[%clk 0:01:27.8]} 20... Rxa1 {[%clk
0:01:42.1]} 21. Rxa1 {[%clk 0:01:26.9]} 21... Qxb2 {[%clk 0:01:42]} 22. Rb1
{[%clk 0:01:26.7]} 22... Qc3 {[%clk 0:01:40.4]} 23. Rc1 {[%clk 0:01:11.6]} 23...
Qa3 {[%clk 0:01:30.5]} 24. Nc6 {[%clk 0:01:04.3]} 24... Bd8 {[%clk 0:01:19]} 25.
e5 {[%clk 0:01:02]} 25... Nxd5 {[%clk 0:01:13.4]} 26. Qe4 {[%clk 0:00:21]} 26...
g6 {[%clk 0:01:12.4]} 27. Bd2 {[%clk 0:00:20.9]} 27... Qc5 {[%clk 0:01:04.5]}
28. Nxd8 {[%clk 0:00:17.8]} 28... Rxd8 {[%clk 0:01:04.4]} 29. e6 {[%clk
0:00:16.1]} 29... N7f6 {[%clk 0:01:03.8]} 30. exf7+ {[%clk 0:00:14.7]} 30...
Kxf7 {[%clk 0:01:04.7]} 31. Qf3 {[%clk 0:00:14.7]} 31... Re8 {[%clk 0:00:55.6]}
32. f5 {[%clk 0:00:13.9]} 32... Ne3 {[%clk 0:00:46.5]} 33. fxg6+ {[%clk
0:00:13.5]} 33... hxg6 {[%clk 0:00:47.4]} 34. Bxe3 {[%clk 0:00:08.7]} 34... Qxe3
{[%clk 0:00:44.2]} 35. Qf1 {[%clk 0:00:08.7]} 35... Kg7 {[%clk 0:00:41]} 36. Rd1
{[%clk 0:00:07.1]} 36... d5 {[%clk 0:00:41.6]} 37. Bb1 {[%clk 0:00:06.7]} 37...
Qe5 {[%clk 0:00:36.8]} 38. Qf3 {[%clk 0:00:06.4]} 38... d4 {[%clk 0:00:33.5]}
39. Qb7+ {[%clk 0:00:05.6]} 39... Re7 {[%clk 0:00:33.8]} 40. Qc6 {[%clk
0:00:06]} 40... c3 {[%clk 0:00:32]} 41. Bd3 {[%clk 0:00:05.3]} 41... Qe6 {[%clk
0:00:29.8]} 42. Qc5 {[%clk 0:00:05.2]} 42... Rd7 {[%clk 0:00:29.5]} 43. Bc4
{[%clk 0:00:03.7]} 43... Qd6 {[%clk 0:00:29.2]} 44. Qb5 {[%clk 0:00:03.6]} 44...
Ne4 {[%clk 0:00:28.2]} 45. Kg1 {[%clk 0:00:02.9]} 45... c2 {[%clk 0:00:25.1]}
46. Rc1 {[%clk 0:00:02.8]} 46... d3 {[%clk 0:00:24.5]} 47. Bxd3 {[%clk
0:00:03.2]} 47... Qd4+ {[%clk 0:00:23.8]} 48. Kh2 {[%clk 0:00:02.6]} 48... Qxd3
{[%clk 0:00:23]} 49. Qxd3 {[%clk 0:00:02.4]} 49... Rxd3 {[%clk 0:00:23.9]} 50.
Rxc2 {[%clk 0:00:03.2]} 50... Kf6 {[%clk 0:00:24.3]} 51. Ra2 {[%clk 0:00:03.3]}
51... Nd6 {[%clk 0:00:23.3]} 52. Ra5 {[%clk 0:00:02.9]} 52... Nf5 {[%clk
0:00:23.2]} 53. Kg1 {[%clk 0:00:03]} 53... Rd1+ {[%clk 0:00:23.2]} 54. Kf2
{[%clk 0:00:03.3]} 54... Rd2+ {[%clk 0:00:23.8]} 55. Kf3 {[%clk 0:00:03.8]}
55... Nh4+ {[%clk 0:00:23.6]} 56. Kg3 {[%clk 0:00:03.5]} 56... Nxg2 {[%clk
0:00:23.5]} 57. Ra6+ {[%clk 0:00:02.8]} 57... Kg7 {[%clk 0:00:23.9]} 58. h4
{[%clk 0:00:03.3]} 58... Ne3 {[%clk 0:00:22.5]} 59. Kf3 {[%clk 0:00:03.2]} 59...
Nf5 {[%clk 0:00:21.6]} 60. Kf4 {[%clk 0:00:03.3]} 60... Ne7 {[%clk 0:00:16.2]}
61. Ra7 {[%clk 0:00:02.5]} 61... Kf6 {[%clk 0:00:16.1]} 62. Ra6+ {[%clk
0:00:02.9]} 62... Kf7 {[%clk 0:00:16.5]} 63. Ra7 {[%clk 0:00:02.4]} 63... Rd4+
{[%clk 0:00:16.5]} 64. Kg5 {[%clk 0:00:02.8]} 64... Rd5+ {[%clk 0:00:17]} 65.
Kg4 {[%clk 0:00:03.3]} 65... Kf6 {[%clk 0:00:16.9]} 66. Ra6+ {[%clk 0:00:03.8]}
66... Kf7 {[%clk 0:00:16.1]} 67. Ra7 {[%clk 0:00:04.3]} 67... Re5 {[%clk
0:00:16.4]} 68. Rb7 {[%clk 0:00:04.2]} 68... Kf6 {[%clk 0:00:14.8]} 69. Rb6+
{[%clk 0:00:04.6]} 69... Kg7 {[%clk 0:00:15.3]} 70. Rb7 {[%clk 0:00:04.7]} 70...
Kh6 {[%clk 0:00:15]} 71. Rb8 {[%clk 0:00:05.2]} 71... Nd5 {[%clk 0:00:14.6]} 72.
Rh8+ {[%clk 0:00:05.1]} 72... Kg7 {[%clk 0:00:15.2]} 73. Ra8 {[%clk 0:00:05.7]}
73... Nf6+ {[%clk 0:00:15.6]} 74. Kg3 {[%clk 0:00:06.1]} 74... Re3+ {[%clk
0:00:15.9]} 75. Kf4 {[%clk 0:00:06]} 75... Re4+ {[%clk 0:00:16.3]} 76. Kg3
{[%clk 0:00:05.5]} 76... Rg4+ {[%clk 0:00:16.5]} 77. Kh3 {[%clk 0:00:06]} 77...
Rc4 {[%clk 0:00:16.8]} 78. Ra6 {[%clk 0:00:05.5]} 78... Nh5 {[%clk 0:00:15.7]}
79. Rb6 {[%clk 0:00:05]} 79... Rc3+ {[%clk 0:00:15.8]} 80. Kg2 {[%clk
0:00:04.3]} 80... Nf4+ {[%clk 0:00:16.2]} 81. Kf2 {[%clk 0:00:04.1]} 81... Kh6
{[%clk 0:00:16.7]} 82. Rb4 {[%clk 0:00:03.7]} 82... Nd3+ {[%clk 0:00:16.5]} 0-1

[Event "Late-Titled-Tuesday-Blitz-January-30-2024"]
[Site "Chess.com"]
[Date "2024.01.30"]
[Round "2"]
[White "malakismayil"]
[Black "GMG"]
[Result "0-1"]
[WhiteElo "2558"]
[BlackElo "2812"]
[TimeControl "180+1"]
[EndTime "14:19:28 PST"]
[Termination "GMG won on time"]

1. e4 {[%clk 0:03:00.9]} 1... c5 {[%clk 0:02:59.9]} 2. Nf3 {[%clk 0:03:00.7]}
2... Nc6 {[%clk 0:03:00.5]} 3. Bb5 {[%clk 0:02:57.5]} 3... e6 {[%clk 0:03:00.5]}
4. O-O {[%clk 0:02:50.3]} 4... Nge7 {[%clk 0:03:00.4]} 5. Re1 {[%clk 0:02:49.8]}
5... b6 {[%clk 0:02:58.8]} 6. c3 {[%clk 0:02:48.3]} 6... a6 {[%clk 0:02:58.5]}
7. Bf1 {[%clk 0:02:44.6]} 7... d5 {[%clk 0:02:59]} 8. d4 {[%clk 0:02:33.4]} 8...
dxe4 {[%clk 0:02:55.8]} 9. Rxe4 {[%clk 0:02:34.3]} 9... Bb7 {[%clk 0:02:54.9]}
10. Re1 {[%clk 0:02:21.3]} 10... cxd4 {[%clk 0:02:51.2]} 11. cxd4 {[%clk
0:02:19.4]} 11... Nd5 {[%clk 0:02:47.9]} 12. Bg5 {[%clk 0:02:11.8]} 12... Be7
{[%clk 0:02:46.6]} 13. Bxe7 {[%clk 0:02:11.5]} 13... Ncxe7 {[%clk 0:02:47.5]}
14. Nbd2 {[%clk 0:02:07.1]} 14... O-O {[%clk 0:02:46.9]} 15. Ne4 {[%clk
0:01:58.8]} 15... Rc8 {[%clk 0:02:37.5]} 16. Qd2 {[%clk 0:01:54.8]} 16... Ng6
{[%clk 0:02:24.2]} 17. Ng3 {[%clk 0:01:28.4]} 17... Ndf4 {[%clk 0:02:15.1]} 18.
Ne5 {[%clk 0:01:24.1]} 18... Qd5 {[%clk 0:02:12.7]} 19. Nxg6 {[%clk 0:01:17.7]}
19... Nxg6 {[%clk 0:02:09.2]} 20. f4 {[%clk 0:00:51.9]} 20... Rfd8 {[%clk
0:02:01.5]} 21. Red1 {[%clk 0:00:40.6]} 21... Ne7 {[%clk 0:01:22.3]} 22. Qf2
{[%clk 0:00:39.9]} 22... Nc6 {[%clk 0:01:17.5]} 23. Ne2 {[%clk 0:00:35.8]} 23...
Ne7 {[%clk 0:01:10.4]} 24. Nc3 {[%clk 0:00:35.5]} 24... Qd6 {[%clk 0:01:10.3]}
25. Bd3 {[%clk 0:00:28.7]} 25... h6 {[%clk 0:01:08.8]} 26. Rac1 {[%clk
0:00:15.3]} 26... b5 {[%clk 0:01:05.2]} 27. a3 {[%clk 0:00:15.2]} 27... g6
{[%clk 0:01:00.6]} 28. Be4 {[%clk 0:00:14.4]} 28... Bd5 {[%clk 0:00:59.4]} 29.
Bxd5 {[%clk 0:00:13.9]} 29... Nxd5 {[%clk 0:00:59.9]} 30. Nxd5 {[%clk
0:00:13.4]} 30... Qxd5 {[%clk 0:01:00.8]} 31. Rxc8 {[%clk 0:00:11.7]} 31... Rxc8
{[%clk 0:01:01.7]} 32. Qd2 {[%clk 0:00:11.9]} 32... Rc4 {[%clk 0:00:58.1]} 33.
b3 {[%clk 0:00:08.6]} 33... Rc6 {[%clk 0:00:55.7]} 34. Qd3 {[%clk 0:00:09]}
34... Rd6 {[%clk 0:00:53.8]} 35. h3 {[%clk 0:00:08.9]} 35... Kg7 {[%clk
0:00:54.2]} 36. Rd2 {[%clk 0:00:08.7]} 36... a5 {[%clk 0:00:52.6]} 37. Qc3
{[%clk 0:00:08.7]} 37... a4 {[%clk 0:00:51.3]} 38. b4 {[%clk 0:00:06.6]} 38...
Rc6 {[%clk 0:00:51]} 39. Qd3 {[%clk 0:00:06.6]} 39... Rc1+ {[%clk 0:00:50.5]}
40. Kh2 {[%clk 0:00:06.5]} 40... Rc4 {[%clk 0:00:50]} 41. Qe3 {[%clk 0:00:06.3]}
41... Qd6 {[%clk 0:00:43.1]} 42. Kg1 {[%clk 0:00:03.1]} 42... Qd5 {[%clk
0:00:41.8]} 43. Kh2 {[%clk 0:00:03.2]} 43... f6 {[%clk 0:00:34.8]} 44. h4 {[%clk
0:00:03.4]} 44... Kf7 {[%clk 0:00:34.8]} 45. Kg1 {[%clk 0:00:02.6]} 45... Ke7
{[%clk 0:00:33.6]} 46. Kh2 {[%clk 0:00:03.1]} 46... Kf7 {[%clk 0:00:29.9]} 47.
Kg1 {[%clk 0:00:03.5]} 47... g5 {[%clk 0:00:27.2]} 48. hxg5 {[%clk 0:00:03.3]}
48... hxg5 {[%clk 0:00:27.6]} 49. fxg5 {[%clk 0:00:04.2]} 49... Qxg5 {[%clk
0:00:28.2]} 50. Qxg5 {[%clk 0:00:03.8]} 50... fxg5 {[%clk 0:00:28.7]} 51. Rd3
{[%clk 0:00:04.7]} 51... Ke7 {[%clk 0:00:27]} 52. Kf2 {[%clk 0:00:05.2]} 52...
Kd6 {[%clk 0:00:27.6]} 53. Ke3 {[%clk 0:00:05.9]} 53... Kd5 {[%clk 0:00:28.2]}
54. Kf3 {[%clk 0:00:04.3]} 54... Rxd4 {[%clk 0:00:26.9]} 55. Rc3 {[%clk
0:00:05]} 55... Rc4 {[%clk 0:00:23.8]} 56. Rd3+ {[%clk 0:00:05.4]} 56... Ke5
{[%clk 0:00:24.2]} 57. Re3+ {[%clk 0:00:05.4]} 57... Kf5 {[%clk 0:00:23.3]} 58.
Rd3 {[%clk 0:00:05.2]} 58... e5 {[%clk 0:00:23.3]} 59. Ke3 {[%clk 0:00:03.2]}
59... g4 {[%clk 0:00:22.4]} 60. g3 {[%clk 0:00:03]} 60... Re4+ {[%clk
0:00:22.5]} 61. Kf2 {[%clk 0:00:03.1]} 61... Rd4 {[%clk 0:00:22.8]} 62. Rc3
{[%clk 0:00:03.5]} 62... Ke4 {[%clk 0:00:20.6]} 63. Rc5 {[%clk 0:00:03.3]} 63...
Rd5 {[%clk 0:00:20.9]} 64. Rc8 {[%clk 0:00:02.3]} 64... Kd3 {[%clk 0:00:20.6]}
65. Ke1 {[%clk 0:00:01.4]} 65... e4 {[%clk 0:00:18.7]} 66. Rg8 {[%clk 0:00:02]}
66... Rh5 {[%clk 0:00:18.4]} 67. Rxg4 {[%clk 0:00:01.9]} 67... Rh1+ {[%clk
0:00:18.6]} 68. Kf2 {[%clk 0:00:02.8]} 68... e3+ {[%clk 0:00:18.8]} 69. Kg2
{[%clk 0:00:03]} 69... e2 {[%clk 0:00:19.3]} 70. Kxh1 {[%clk 0:00:01.9]} 70...
e1=Q+ {[%clk 0:00:19.6]} 71. Kh2 {[%clk 0:00:02.8]} 71... Qe2+ {[%clk
0:00:19.2]} 72. Kh3 {[%clk 0:00:03.5]} 72... Kc3 {[%clk 0:00:19]} 73. Rg5 {[%clk
0:00:03.1]} 73... Kb3 {[%clk 0:00:18.8]} 74. g4 {[%clk 0:00:02.6]} 74... Kxa3
{[%clk 0:00:19]} 75. Rf5 {[%clk 0:00:03.1]} 75... Kxb4 {[%clk 0:00:18.6]} 76.
Rf4+ {[%clk 0:00:04]} 76... Ka5 {[%clk 0:00:18.7]} 77. g5 {[%clk 0:00:04.6]}
77... Qe3+ {[%clk 0:00:18.3]} 78. Kg4 {[%clk 0:00:04.3]} 78... a3 {[%clk
0:00:18.1]} 79. g6 {[%clk 0:00:04.5]} 79... a2 {[%clk 0:00:18.3]} 80. Rf1 {[%clk
0:00:04.6]} 80... Qd4+ {[%clk 0:00:15.8]} 81. Kg5 {[%clk 0:00:03.5]} 81... a1=Q
{[%clk 0:00:16.3]} 0-1